bitfinex/quotes_ETHUSD_20241204
["timestamp","ask_amount","ask_price","bid_price","bid_amount"]
[1733281279193,2.73302,3659.0,3658.1,0.7643]
[1733281279426,0.77,3659.4,3658.1,0.7643]
[1733281279730,2.73291,3659.1,3658.1,0.7643]
[1733281280028,2.73291,3659.1,3657.3,2.73421]
[1733281280029,0.77,3658.7,3657.0,0.274]
[1733281280328,2.73345,3658.4,3657.0,0.7643]
[1733281280533,0.77,3658.7,3657.0,0.7643]
[1733281280738,3.50322,3658.7,3657.4,0.7913]
[1733281280934,2.73331,3658.6,3657.5,0.352553]
[1733281281296,0.77,3658.7,3657.5,0.352553]
[1733281281496,0.77,3658.7,3657.5,0.379888]
[1733281281809,0.77,3658.7,3657.5,0.352553]
[1733281282031,0.77,3658.7,3657.5,0.027335]
[1733281282197,3.50321,3658.7,3657.5,0.027335]
[1733281282393,3.50321,3658.7,3657.4,0.7913]
[1733281282394,0.77,3658.7,3657.4,0.7913]
[1733281282641,2.7333,3658.6,3657.5,0.027335]
[1733281283132,2.7333,3658.6,3657.4,3.7913]
[1733281283295,2.73337,3658.5,3657.5,0.652552]
[1733281283499,2.73341,3658.5,3657.5,0.652552]
[1733281283927,2.73341,3658.5,3657.4,0.7913]
[1733281284342,3.50321,3658.7,3657.4,0.7913]
[1733281284539,0.77,3658.7,3657.4,0.7913]
[1733281284743,2.73336,3658.5,3657.4,0.7913]
[1733281284951,3.50322,3658.7,3657.5,3.0]
[1733281285108,3.50322,3658.7,3657.6,0.652544]
[1733281285454,0.77,3658.7,3657.6,0.652544]
[1733281285642,0.77,3658.7,3657.6,0.679879]
[1733281285849,0.77,3658.7,3657.6,2.761345]
[1733281286070,0.8027,3659.1,3657.7,3.51069]
[1733281286237,0.53663087,3659.0,3657.8,3.0876825]
[1733281286436,0.8027,3659.1,3657.9,0.02733393]
[1733281286771,0.7643,3659.7,3658.0,0.7941]
[1733281286929,0.7643,3659.7,3658.5,2.73333]
[1733281287119,0.7643,3659.7,3658.6,1.067433]
[1733281287361,0.7643,3659.7,3658.6,3.52738]
[1733281287859,3.56476,3660.0,3658.6,3.52738]
[1733281288258,2.73232,3659.9,3658.6,3.52738]
[1733281288561,0.8325,3660.0,3658.8,2.73311]
[1733281288776,3.56477,3660.0,3658.9,0.352721]
[1733281288917,0.8325,3660.0,3658.6,0.7941]
[1733281289219,3.61596661,3660.9,3659.4,2.73266]
[1733281289418,0.8201,3660.8,3659.7,0.761]
[1733281289864,2.73172,3660.7,3659.7,0.761]
[1733281290074,2.73188,3660.5,3659.7,0.761]
[1733281290379,2.73191,3660.5,3658.9,0.761]
[1733281290664,0.355182,3660.7,3659.3,2.73274]
[1733281290845,0.8201,3660.8,3659.7,2.73242]
[1733281291050,0.8201,3660.8,3659.5,0.7991]
[1733281291255,0.7833,3662.3,3660.7,2.7317]
[1733281291424,2.73069,3662.1,3660.8,1.06587]
[1733281291628,2.73079,3662.0,3660.8,1.06587]
[1733281291850,2.73079,3662.0,3660.8,0.7927]
[1733281292072,2.73082,3661.9,3660.8,0.7927]
[1733281292364,0.7833,3662.3,3660.8,0.7927]
[1733281292365,2.73069,3662.1,3660.8,0.7927]
[1733281292660,0.7833,3662.3,3660.8,0.7927]
[1733281292870,2.73091,3661.8,3660.8,0.7927]
[1733281293950,2.73098,3661.7,3660.8,0.7927]
[1733281294564,2.731,3661.7,3660.8,0.7927]
[1733281294865,2.73074,3662.0,3660.0,3.48972]
[1733281295069,2.73143,3661.1,3660.1,0.348972]
[1733281295374,2.73143,3661.1,3660.0,0.7575]
[1733281295532,2.7312,3661.4,3660.1,2.73215]
[1733281295929,2.73128,3661.3,3660.0,0.7575]
[1733281296170,0.273128,3661.3,3660.0,0.7575]
[1733281296328,3.5548,3661.0,3660.0,0.7575]
[1733281296665,0.8233,3661.0,3660.0,0.7575]
[1733281296961,0.8233,3661.6,3660.0,0.7575]
[1733281297575,2.73126,3661.4,3660.2,0.8299]
[1733281297773,2.73127,3661.3,3660.2,0.8299]
[1733281297938,0.8233,3661.6,3660.2,0.8299]
[1733281298265,2.73128,3661.3,3660.2,0.8299]
[1733281298871,0.8233,3661.6,3660.2,0.8299]
[1733281298872,2.73115,3661.5,3660.2,0.8299]
[1733281299078,2.73093,3661.8,3660.4,0.8072]
[1733281299305,3.53831,3662.2,3660.9,2.73156]
[1733281299598,2.73068,3662.1,3660.7,0.02731081]
[1733281299894,2.73075,3662.0,3660.6,0.8072]
[1733281300096,2.73075,3662.0,3660.7,0.353913]
[1733281300254,2.73075,3662.0,3660.7,0.38122381]
[1733281300898,2.73083,3661.9,3660.7,0.353913]
[1733281301108,2.73083,3661.9,3660.7,0.02731081]
[1733281301800,2.73066,3662.2,3660.8,0.8033]
[1733281301967,2.73052,3662.3,3660.8,0.8033]
[1733281302169,0.28881202,3662.2,3660.8,0.8033]
[1733281302396,2.73082,3661.9,3660.8,0.8033]
[1733281302920,0.1576002,3662.4,3660.8,0.8033]
[1733281303129,2.73095,3661.8,3660.8,0.8033]
[1733281303331,3.77356681,3662.4,3660.8,0.8033]
[1733281303843,0.1576002,3662.4,3660.9,0.84371081]
[1733281304543,2.73067,3662.1,3660.9,0.84371081]
[1733281304705,2.73085,3661.9,3660.9,0.8164]
[1733281305027,0.7922,3662.3,3660.9,0.8164]
[1733281305028,2.73077,3662.0,3660.9,0.8164]
[1733281306826,2.73077,3662.0,3661.0,0.39282803]
[1733281307035,2.73063,3662.2,3661.0,0.39282803]
[1733281307335,2.73068,3662.1,3661.0,0.39282803]
[1733281307686,0.1576002,3662.4,3661.1,0.7788]
[1733281308091,0.1576002,3662.4,3661.3,0.8001]
[1733281308421,0.1576002,3662.4,3661.4,0.35586874]
[1733281308797,0.14865713,3662.4,3661.4,0.35586874]
[1733281309098,2.87912713,3662.4,3661.3,0.8001]
[1733281310644,0.14865713,3662.4,3661.3,0.8001]
[1733281311143,2.73076,3662.0,3661.3,0.8001]
[1733281311354,2.73067,3662.1,3661.3,0.8001]
[1733281311722,3.76462374,3662.4,3661.3,0.8001]
[1733281312047,2.73075,3662.0,3661.3,0.8001]
[1733281312224,2.73085,3661.9,3661.3,0.8001]
[1733281312423,2.73089,3661.8,3661.3,0.8001]
[1733281313111,3.085359,3661.8,3660.7,0.274]
[1733281313610,2.73098,3661.7,3660.7,0.274]
[1733281313811,0.354469,3661.8,3660.7,0.274]
[1733281314006,0.8138,3662.1,3660.6,2.73176]
[1733281314266,0.8138,3662.1,3660.9,0.274]
[1733281314419,2.73075,3662.0,3660.9,0.274]
[1733281314962,0.8138,3662.1,3660.9,0.274]
[1733281315248,2.73089,3661.8,3660.7,0.274]
[1733281315554,0.354433,3662.0,3660.4,3.0]
[1733281315738,3.54453,3662.1,3660.7,2.73169]
[1733281315739,2.73084,3661.9,3660.7,2.73169]
[1733281316071,0.8138,3662.1,3660.9,0.7703]
[1733281316232,0.14865713,3662.4,3660.9,0.797611]
[1733281316432,0.14865713,3662.4,3661.3,2.73124]
[1733281316624,0.14865713,3662.4,3661.7,2.73096]
[1733281316825,0.14865713,3662.4,3661.8,0.8178]
[1733281323074,2.87910713,3662.4,3661.4,0.7837]
[1733281323272,2.87910713,3662.4,3660.8,2.73159]
[1733281323273,3.76462374,3662.4,3660.7,0.7837]
[1733281323482,0.36670253,3662.3,3660.7,0.7837]
[1733281323909,2.73072,3662.1,3660.7,3.51541]
[1733281324113,2.73073,3662.1,3660.7,3.51541]
[1733281324329,0.30974325,3662.0,3660.7,3.866951]
[1733281324488,3.04048325,3662.0,3660.7,3.866951]
[1733281325326,2.73097,3661.7,3660.7,1.135241]
[1733281325635,0.8286,3661.8,3660.7,3.51541]
[1733281325925,0.8286,3661.8,3660.7,0.7837]
[1733281325926,2.73097,3661.7,3660.7,0.7837]
[1733281327120,0.8286,3661.8,3660.7,3.51541]
[1733281327332,6.34678661,3661.9,3660.7,3.51541]
[1733281327632,6.34678661,3661.9,3660.7,3.866951]
[1733281327801,2.7309,3661.8,3660.7,0.7837]
[1733281328905,3.61596661,3661.9,3660.7,0.7837]
[1733281329091,0.7588,3661.5,3660.7,0.7837]
[1733281329293,2.73134,3661.2,3660.7,0.7837]
[1733281329495,0.08541789,3661.1,3660.7,0.7837]
[1733281329743,0.08541789,3661.1,3660.1,1.0747]
[1733281329909,0.7588,3661.5,3660.1,1.0747]
[1733281329910,0.08541789,3661.0,3660.1,1.073915]
[1733281330099,0.08541789,3660.9,3660.1,0.8007]
[1733281330416,0.08541789,3660.8,3660.1,0.8007]
[1733281330617,0.08541789,3660.7,3660.1,0.8007]
[1733281330822,0.08541789,3660.6,3660.1,0.8007]
[1733281331005,0.08541789,3660.5,3660.1,0.8007]
[1733281331210,0.08541789,3660.8,3660.2,2.75940062]
[1733281331395,3.61596661,3661.9,3660.8,0.8057]
[1733281331595,0.08542487,3661.8,3660.8,0.8057]
[1733281331831,0.08542487,3661.7,3660.8,0.8057]
[1733281331995,0.08542487,3661.6,3660.8,0.8057]
[1733281332195,0.08542487,3661.5,3660.8,0.8057]
[1733281332435,0.08542487,3661.4,3660.8,3.53731]
[1733281332605,0.08542487,3661.3,3660.8,3.53731]
[1733281332929,0.08542487,3661.2,3660.8,0.8057]
[1733281333132,0.08542487,3661.1,3660.8,0.8057]
[1733281333352,0.08542487,3661.7,3661.6,3.53674]
[1733281333636,0.08542487,3662.3,3661.6,3.53674]
[1733281333801,0.08542487,3662.2,3661.6,3.53674]
[1733281334000,0.14865713,3662.4,3661.6,3.53674]
[1733281334001,0.08542487,3662.1,3661.6,3.53674]
[1733281334343,0.08542487,3662.0,3661.6,3.53674]
[1733281334509,0.14865713,3662.4,3661.6,3.53674]
[1733281334715,0.08539766,3662.3,3661.6,3.53674]
[1733281334909,0.08539766,3662.2,3661.6,3.53674]
[1733281335127,0.08539766,3662.1,3661.6,3.53674]
[1733281335327,0.08539766,3662.0,3661.6,3.53674]
[1733281335643,0.08539766,3662.3,3661.6,0.8057]
[1733281335845,0.14865713,3662.4,3661.6,0.8057]
[1733281335846,0.08539766,3662.2,3661.6,0.8057]
[1733281336131,0.08539766,3662.1,3661.6,0.8057]
[1733281336296,0.14865713,3662.4,3661.6,0.8057]
[1733281336499,0.085397,3662.3,3661.6,3.53673]
[1733281336727,0.085397,3662.2,3661.6,3.53673]
[1733281336939,0.085397,3662.1,3661.6,0.8057]
[1733281337159,0.08540018,3662.0,3661.6,0.8057]
[1733281337359,0.8128,3662.3,3661.6,0.8057]
[1733281337655,0.08540194,3662.2,3661.6,0.8057]
[1733281337854,0.08540194,3662.1,3661.6,0.8057]
[1733281338057,0.08540194,3662.0,3661.6,0.8057]
[1733281338266,0.8128,3662.3,3661.6,0.8057]
[1733281338267,0.08540194,3661.9,3661.6,0.8057]
[1733281338444,0.08540194,3661.8,3661.6,0.8057]
[1733281338645,0.08540194,3662.2,3661.6,0.8057]
[1733281338845,0.08540194,3662.1,3661.6,0.8057]
[1733281339051,0.08540194,3662.0,3661.6,0.8057]
[1733281339376,0.08540194,3661.9,3661.6,0.8057]
[1733281339520,3.76462374,3662.4,3661.6,0.8057]
[1733281339725,3.76462374,3662.4,3661.6,3.5640479]
[1733281339726,0.08540114,3662.3,3661.6,3.5640479]
[1733281340059,0.08540114,3662.2,3661.6,3.5640479]
[1733281340266,0.08540114,3662.1,3661.6,3.5640479]
[1733281340463,0.08540114,3662.0,3661.6,0.8057]
[1733281340620,0.08540036,3662.3,3661.6,0.8057]
[1733281340820,0.08540036,3662.2,3661.6,0.8057]
[1733281341026,0.08540036,3662.1,3661.1,2.73138]
[1733281341245,0.08540036,3662.0,3661.2,0.7688]
[1733281341484,0.08540036,3661.9,3661.2,0.7688]
[1733281341759,1.13448567,3662.3,3661.3,0.02730925]
[1733281341760,2.62008974,3662.3,3661.3,0.02730925]
[1733281341968,2.62008974,3661.9,3661.2,0.7688]
[1733281342171,0.08540548,3661.8,3661.2,0.7688]
[1733281342322,0.08540548,3661.7,3661.2,0.7688]
[1733281342669,0.08540548,3661.8,3661.2,0.7688]
[1733281342966,0.08540548,3661.9,3661.3,0.02731071]
[1733281343168,0.08540548,3662.1,3661.4,0.821]
[1733281343324,0.08540548,3662.3,3661.8,3.55189]
[1733281343530,0.08540548,3662.2,3661.8,0.821]
[1733281344379,0.08540548,3662.2,3661.8,3.55188]
[1733281344584,0.08540548,3662.3,3661.9,2.73081]
[1733281344741,0.08540548,3662.2,3661.8,0.821]
[1733281345085,0.08540548,3662.3,3661.8,0.821]
[1733281345635,0.08540548,3662.3,3661.8,0.591888]
[1733281345952,0.08540548,3662.3,3661.8,3.322758]
[1733281346646,0.08540548,3662.3,3661.8,0.591888]
[1733281346853,0.37460253,3662.3,3661.8,0.591888]
[1733281347573,0.08540548,3662.3,3661.8,0.591888]
[1733281347860,2.76874687,3662.4,3661.4,2.73114]
[1733281348098,0.08539652,3662.3,3661.3,2.73126]
[1733281348282,0.08539652,3662.2,3661.3,2.73126]
[1733281348589,0.08539652,3662.1,3661.3,2.73126]
[1733281348881,0.08539652,3662.0,3661.4,0.8232]
[1733281349038,0.08539652,3662.3,3661.5,0.8232]
[1733281349240,0.08539652,3662.2,3661.8,2.73086]
[1733281349435,0.08539652,3662.3,3661.8,2.73086]
[1733281349659,0.08539652,3662.2,3661.8,2.73086]
[1733281349874,0.08539652,3662.3,3661.6,2.731]
[1733281350079,0.08539652,3662.3,3661.5,0.8232]
[1733281350080,2.62008974,3662.0,3661.5,0.8232]
[1733281350789,0.08540817,3661.9,3661.5,0.8232]
[1733281350968,0.08540817,3661.8,3661.0,2.73148]
[1733281351171,0.08540817,3661.7,3661.1,0.7626]
[1733281351346,0.08540817,3661.9,3661.1,0.7626]
[1733281351549,0.08540817,3661.8,3661.1,0.7626]
[1733281351743,0.08540817,3661.7,3661.1,0.7626]
[1733281351960,0.08540817,3661.6,3661.1,0.7626]
[1733281352273,2.62008974,3661.6,3660.8,2.73163]
[1733281352481,0.08540817,3661.5,3660.8,3.55223]
[1733281352684,0.08540817,3661.5,3660.8,0.8206]
[1733281353061,0.08540817,3661.5,3661.0,2.73142]
[1733281353316,2.62008974,3661.6,3660.8,3.55223]
[1733281353980,0.08541243,3661.5,3660.8,3.55223]
[1733281354362,0.0854125,3661.5,3660.8,3.55223]
[1733281354672,0.0854125,3661.5,3660.3,3.09737029]
[1733281354673,0.8304,3661.1,3660.3,0.274]
[1733281355006,0.91582327,3661.1,3660.3,0.274]
[1733281355308,0.08542327,3661.0,3660.1,2.73216]
[1733281355695,2.62008974,3660.8,3659.9,2.7323]
[1733281355844,2.62008974,3660.8,3659.9,0.37560708]
[1733281356059,2.62008974,3660.8,3660.2,2.73204]
[1733281357039,1.7017285,3661.6,3659.9,0.02731708]
[1733281357040,1.13448567,3661.7,3661.6,2.73104]
[1733281357203,0.0854128,3661.8,3661.4,0.8065]
[1733281357404,0.25558565,3661.8,3661.4,3.53767]
[1733281357638,0.0854128,3662.2,3661.4,3.53767]
[1733281357846,0.0854128,3662.1,3661.4,3.53767]
[1733281358145,0.0854128,3662.0,3661.4,0.8065]
[1733281358348,3.38098974,3662.3,3661.4,3.53768]
[1733281358553,0.47019507,3662.2,3661.4,3.53768]
[1733281358751,0.55560093,3662.2,3661.5,2.73111]
[1733281358909,0.08540586,3662.1,3661.5,2.73111]
[1733281359106,0.08540586,3662.1,3661.8,2.73088]
[1733281359458,0.08540586,3662.3,3661.7,2.73091]
[1733281359658,0.08540586,3662.3,3661.7,2.73094]
[1733281359863,0.08540586,3662.3,3661.4,0.8065]
[1733281360156,0.08540586,3662.3,3661.8,2.73088]
[1733281360520,0.08540586,3662.2,3661.8,2.73088]
[1733281360726,0.08540586,3662.3,3661.6,2.73104]
[1733281360940,0.8158,3662.1,3661.4,0.02730618]
[1733281361140,2.62008974,3661.5,3660.9,2.73152]
[1733281361324,2.62008974,3661.5,3660.5,2.73186]
[1733281361325,2.62008974,3661.5,3660.4,3.7503]
[1733281361520,0.08541299,3661.4,3660.6,2.73173]
[1733281361764,0.08541299,3661.4,3660.7,2.73171]
[1733281361978,2.62008974,3661.1,3658.9,0.1]
[1733281362178,2.62008974,3661.1,3660.3,3.4823]
[1733281362179,0.08541299,3661.0,3660.3,3.4823]
[1733281362771,0.08541299,3660.9,3660.3,3.4823]
[1733281362970,0.08541299,3661.0,3660.3,0.7503]
[1733281363132,2.62008974,3661.1,3660.0,0.7681]
[1733281363133,0.08541299,3660.9,3660.0,0.7681]
[1733281363492,2.62008974,3660.7,3660.0,1.11814]
[1733281363638,0.7862,3660.9,3659.9,2.7323]
[1733281363988,0.08543459,3660.8,3659.9,2.7323]
[1733281364339,0.87163459,3660.9,3660.0,0.0273177]
[1733281364557,4.23275599,3661.4,3660.0,0.0273177]
[1733281364558,0.7836,3661.2,3660.0,0.68009847]
[1733281364761,0.08543459,3661.1,3660.4,0.8232]
[1733281364962,0.08406897,3661.1,3660.4,0.8232]
[1733281365351,3.09827032,3661.4,3660.4,0.8232]
[1733281365646,3.09827032,3661.4,3660.5,0.02731294]
[1733281366583,1.93698567,3661.7,3660.5,0.02731294]
[1733281366584,0.8025,3661.7,3660.7,2.73168]
[1733281367139,0.8025,3661.7,3660.4,1.178729]
[1733281367140,0.8025,3661.7,3660.8,0.02731412]
[1733281367373,1.13448567,3662.1,3660.7,0.7754]
[1733281367586,3.09827032,3662.2,3660.7,0.7754]
[1733281367587,0.8116,3662.0,3660.8,2.75894928]
[1733281367878,3.09827032,3662.2,3660.8,2.75894928]
[1733281367879,3.09827032,3662.2,3661.3,2.73125]
[1733281368940,3.09827032,3662.2,3661.1,2.73141]
[1733281369340,3.09827032,3661.8,3660.9,0.7754]
[1733281369656,3.09827032,3661.8,3660.9,3.50696]
[1733281370482,3.09827032,3661.8,3660.5,3.0]
[1733281370483,0.7872,3661.7,3660.7,2.73171]
[1733281372496,0.7872,3661.7,3660.9,2.73155]
[1733281374280,3.09827032,3661.8,3661.3,2.73126]
[1733281374445,0.7629,3662.1,3661.0,0.7531]
[1733281374792,0.7629,3662.1,3661.1,2.73141]
[1733281375791,0.7629,3662.1,3661.4,2.73119]
[1733281376161,0.7629,3662.1,3661.4,2.73114]
[1733281376365,0.7629,3662.1,3661.2,0.30130714]
[1733281376561,0.7629,3662.1,3661.2,0.68537064]
[1733281377163,0.7629,3662.1,3661.4,2.73114]
[1733281377368,0.7629,3662.1,3661.2,3.00534]
[1733281378305,0.7629,3662.1,3661.0,0.7531]
[1733281378779,0.7629,3662.1,3661.0,3.48454]
[1733281379119,0.7629,3662.1,3661.1,0.02731059]
[1733281379627,2.73077,3662.0,3660.8,3.00559]
[1733281379915,0.7922,3661.9,3660.8,3.00559]
[1733281380499,0.7922,3661.9,3660.9,2.73154]
[1733281380699,0.7922,3661.9,3661.0,2.73148]
[1733281381213,0.7922,3661.9,3661.1,0.02731059]
[1733281381415,0.7922,3661.9,3661.2,2.73132]
[1733281381778,0.7922,3661.9,3660.8,0.02731058]
[1733281382487,0.7922,3661.9,3661.3,2.73126]
[1733281383992,0.7922,3661.9,3660.9,0.274]
[1733281384191,0.7922,3661.9,3661.1,2.73141]
[1733281384395,0.7961,3662.3,3661.5,2.7311]
[1733281385835,0.7961,3662.3,3661.6,2.73101]
[1733281386916,0.7961,3662.3,3661.4,2.73119]
[1733281387111,2.62003172,3662.1,3661.2,0.38538177]
[1733281387314,2.62003172,3662.1,3661.6,2.73104]
[1733281388124,0.8295,3662.0,3661.0,3.00545]
[1733281388326,0.61801417,3661.9,3661.1,0.0273104]
[1733281388513,0.8295,3662.0,3661.4,2.73115]
[1733281390836,0.8295,3662.0,3661.1,0.0273104]
[1733281391037,0.8295,3662.0,3661.5,2.73111]
[1733281391337,0.8295,3662.0,3661.1,0.0273104]
[1733281391338,0.8227,3662.3,3661.3,0.7721]
[1733281391502,0.8227,3662.3,3661.9,2.73078]
[1733281393349,0.8227,3662.3,3662.0,2.73074]
[1733281393553,0.8227,3662.3,3661.5,0.274]
[1733281393715,0.8227,3662.3,3661.8,2.73089]
[1733281393913,0.8227,3662.3,3661.9,2.73081]
[1733281394154,0.8227,3662.3,3661.6,0.377729]
[1733281394357,0.8227,3662.3,3661.9,2.73081]
[1733281394539,0.8227,3662.3,3661.9,2.72367683]
[1733281395343,0.8227,3662.3,3661.3,3.85896106]
[1733281395344,0.794,3662.3,3662.0,0.0273046]
[1733281395548,0.14865713,3662.4,3662.1,2.73067]
[1733281396149,0.14865713,3662.4,3661.5,0.274]
[1733281396449,0.14865713,3662.4,3661.6,0.14620611]
[1733281397372,0.14865713,3662.4,3662.1,2.73066]
[1733281397725,0.14865713,3662.4,3661.9,2.73081]
[1733281397925,0.14865713,3662.4,3661.9,2.201717]
[1733281398653,0.8075,3662.3,3661.6,2.87718611]
[1733281398853,0.8075,3662.3,3661.5,3.274]
[1733281399926,2.62003172,3662.2,3660.8,0.274]
[1733281400258,0.8246,3662.1,3661.0,0.274]
[1733281401190,0.8246,3662.1,3661.0,3.00549]
[1733281402487,0.34446317,3662.0,3661.0,3.00549]
[1733281404251,0.8246,3662.1,3661.1,0.02731061]
[1733281404451,0.8246,3662.1,3661.1,2.75870061]
[1733281404651,0.8246,3662.1,3661.2,2.73131]
[1733281404847,0.8246,3662.1,3661.1,0.02731061]
[1733281405073,0.8246,3662.1,3660.9,2.73153]
[1733281405275,0.8246,3662.1,3661.3,2.73125]
[1733281405583,0.8246,3662.1,3661.4,0.02730872]
[1733281405789,0.34446317,3662.0,3661.3,2.73125]
[1733281406025,0.34446317,3662.0,3660.7,0.807]
[1733281406316,0.8039,3661.9,3661.2,2.73132]
[1733281406480,0.8039,3661.9,3660.8,2.75894875]
[1733281406673,0.8039,3661.9,3661.2,2.73128]
[1733281406873,0.8039,3661.9,3661.1,2.73136]
[1733281407114,0.8039,3661.9,3661.2,2.73131]
[1733281407278,0.8039,3661.9,3660.9,3.65659488]
[1733281407481,0.14865713,3662.4,3661.6,2.73104]
[1733281407718,0.788,3662.3,3661.6,2.73104]
[1733281408550,0.788,3662.3,3661.3,2.73126]
[1733281408756,0.788,3662.3,3661.4,2.73115]
[1733281409251,0.788,3662.3,3661.0,0.8014]
[1733281409437,0.788,3662.3,3661.6,2.73104]
[1733281409637,0.788,3662.3,3661.2,3.02730617]
[1733281409943,0.788,3662.3,3661.8,2.73088]
[1733281411144,0.788,3662.3,3661.6,2.73103]
[1733281412221,0.788,3662.3,3661.1,3.274]
[1733281412444,0.788,3662.3,3661.1,6.03265618]
[1733281412654,0.788,3662.3,3661.6,2.73097]
[1733281413147,0.788,3662.3,3661.7,0.02730619]
[1733281413354,0.788,3662.3,3661.4,2.73119]
[1733281413572,0.788,3662.3,3661.6,0.8066]
[1733281413713,0.788,3662.3,3661.3,0.771]
[1733281413911,0.788,3662.3,3661.6,2.73103]
[1733281414149,0.788,3662.3,3661.3,0.771]
[1733281414327,0.788,3662.3,3661.7,2.73096]
[1733281416743,0.788,3662.3,3661.6,2.73104]
[1733281417159,0.14865713,3662.4,3661.7,0.7733]
[1733281417358,0.14865713,3662.4,3661.7,0.80060555]
[1733281417556,0.14865713,3662.4,3662.1,2.73062]
[1733281417763,0.14865713,3662.4,3662.2,2.73058]
[1733281418202,0.14865713,3662.4,3661.8,0.274]
[1733281418482,0.14865713,3662.4,3662.3,2.73052]
[1733281419492,0.98175713,3662.4,3662.1,0.274]
[1733281419877,0.98175713,3662.4,3662.1,3.00466]
[1733281420190,0.14865713,3662.4,3662.2,2.73058]
[1733281420392,0.14865713,3662.4,3662.2,2.75788321]
[1733281420561,0.14865713,3662.4,3662.3,2.73052]
[1733281423664,0.14865713,3662.4,3662.2,2.73052]
[1733281424115,0.14865713,3662.4,3662.0,0.274]
[1733281424281,0.14865713,3662.4,3662.3,2.73052]
[1733281425208,0.14865713,3662.4,3662.3,3.00362]
[1733281425709,0.14865713,3662.4,3662.0,3.14377005]
[1733281425881,0.14865713,3662.4,3662.1,2.73067]
[1733281426087,0.14865713,3662.4,3662.3,2.73052]
[1733281426283,0.14865713,3662.4,3662.3,4.11688622]
[1733281426803,0.14865713,3662.4,3662.3,4.38998622]
[1733281427632,0.14865713,3662.4,3662.3,7.4172858]
[1733281427779,1.14355035,3663.7,3662.6,0.2731]
[1733281427973,1.14355035,3663.8,3662.7,0.98369882]
[1733281428277,3.55515035,3663.9,3663.4,2.72969]
[1733281428479,2.4116,3663.9,3663.4,2.72969]
[1733281428801,2.4116,3663.9,3663.2,0.2731]
[1733281429003,2.4116,3663.9,3663.5,2.72962]
[1733281429210,2.4116,3663.9,3663.6,2.72953]
[1733281429717,2.4116,3663.9,3663.4,2.72963]
[1733281430416,2.4116,3663.9,3663.5,2.72955]
[1733281430771,2.4116,3663.9,3663.6,2.72954]
[1733281431033,1.66,3663.9,3663.6,2.72955]
[1733281431234,1.66,3663.9,3663.1,3.8125]
[1733281431482,1.66,3663.9,3663.6,2.72955]
[1733281432044,1.66,3663.9,3663.8,0.7631]
[1733281432439,1.66,3663.9,3663.8,3.4925]
[1733281434189,1.66,3663.9,3663.8,2.7294]
[1733281434546,1.14355035,3665.3,3664.0,0.7815]
[1733281434840,2.28710071,3665.6,3664.4,2.72894]
[1733281434841,0.825,3665.4,3664.4,2.72894]
[1733281435067,0.825,3665.4,3664.5,0.02728393]
[1733281435374,0.825,3665.4,3664.5,2.75615393]
[1733281435783,0.825,3665.4,3664.1,0.64015317]
[1733281435784,0.825,3665.4,3664.2,2.72904]
[1733281436290,0.8026,3665.3,3664.1,3.64015317]
[1733281436489,0.8026,3665.3,3664.1,3.0]
[1733281436675,3.53089,3665.3,3664.1,3.0]
[1733281436845,3.53089,3665.3,3664.0,0.7815]
[1733281437044,3.53089,3665.3,3664.0,0.80878647]
[1733281437351,0.37928932,3665.2,3664.0,0.95276315]
[1733281437680,0.8026,3665.3,3664.1,0.0272841]
[1733281437878,0.8026,3665.3,3664.2,2.72908]
[1733281438055,0.8026,3665.3,3664.3,0.02728411]
[1733281438438,0.8026,3665.3,3664.0,0.9527608]
[1733281438742,0.8026,3665.3,3664.0,0.92547668]
[1733281438943,0.8026,3665.3,3664.1,0.4283502]
[1733281439184,0.8026,3665.3,3664.1,3.4283502]
[1733281439384,2.72814,3665.5,3664.3,0.7651]
[1733281439674,0.7803,3665.4,3664.3,0.7651]
[1733281439975,0.7803,3665.3,3664.3,0.73394283]
[1733281440276,0.7803,3665.3,3664.3,3.46297283]
[1733281440657,0.7803,3665.3,3664.3,2.75631414]
[1733281440987,0.7803,3665.3,3664.5,2.72886]
[1733281441274,0.7803,3665.3,3664.6,0.02728209]
[1733281441441,0.822,3665.6,3664.6,0.02728209]
[1733281441637,0.822,3665.6,3664.6,2.75607209]
[1733281441848,0.822,3665.6,3664.7,0.35800721]
[1733281442285,0.822,3665.6,3665.2,0.55019768]
[1733281442471,3.55006,3665.6,3665.2,0.55019768]
[1733281442658,0.822,3665.6,3665.2,0.55019768]
[1733281446756,0.54609988,3666.0,3665.2,0.55019768]
[1733281446757,0.01092,3666.0,3665.2,0.55019768]
[1733281446957,0.01092,3666.0,3665.4,2.72818]
[1733281447162,0.01092,3666.0,3665.5,0.33056554]
[1733281447557,0.01092,3666.0,3665.2,0.57747538]
[1733281447762,0.01092,3666.0,3665.2,0.55019768]
[1733281448185,0.01092,3666.0,3665.3,0.02727929]
[1733281448576,0.01092,3666.0,3665.2,0.55019768]
[1733281448897,0.7625,3665.9,3665.2,0.55019768]
[1733281450488,0.01092,3666.0,3665.2,0.87807245]
[1733281450788,0.01092,3666.0,3665.3,0.8066]
[1733281451328,0.01092,3666.0,3665.2,0.55019768]
[1733281451644,0.8019,3665.9,3665.2,0.55019768]
[1733281452306,3.52974,3665.9,3665.2,0.55019768]
[1733281452512,0.8019,3665.8,3665.2,0.55019768]
[1733281453121,0.8019,3665.8,3665.2,0.87807145]
[1733281453324,0.01092,3666.0,3665.3,0.8024]
[1733281453825,0.01092,3666.0,3665.2,0.55019768]
[1733281454007,0.7681,3665.9,3665.2,0.55019768]
[1733281454321,0.7681,3665.9,3665.2,3.27852768]
[1733281454522,0.7681,3665.9,3665.2,0.55019768]
[1733281455729,0.7681,3665.9,3665.2,3.27853768]
[1733281456057,0.01092,3666.0,3665.2,0.8772336]
[1733281456229,0.01092,3666.0,3665.3,0.0272771]
[1733281456434,0.01092,3666.0,3665.6,3.49866]